[Event "Titled Tuesday Blitz August 22 Early 2023"]
[White "Eggleston, Thomas A"]
[Black "Acikel, Mert"]
[WhiteFideId "412139"]
[BlackFideId "12956465"]
[WhiteElo "2429"]
[BlackElo "2323"]
[Result "1-0"]
[Round "11"]
[TimeControl "180+1"]
[Date "2023.08.22"]
[WhiteClock "0:00:08"]
[BlackClock "0:01:10"]
[Board "121"]

1. d4 {[%clk 0:03:00]}  d5 {[%clk 0:03:00]} 2. c4 {[%clk 0:03:00]}  e6 {[%clk 0:03:00]} 3. Nc3 {[%clk 0:02:59]}  Nf6 {[%clk 0:03:01]} 4. Bg5 {[%clk 0:02:58]}  Be7 {[%clk 0:03:01]} 5. e3 {[%clk 0:02:59]}  h6 {[%clk 0:03:01]} 6. Bh4 {[%clk 0:02:58]}  O-O {[%clk 0:03:02]} 7. Nf3 {[%clk 0:02:53]}  b6 {[%clk 0:03:02]} 8. Bd3 {[%clk 0:02:51]}  Bb7 {[%clk 0:03:03]} 9. O-O {[%clk 0:02:48]}  Nbd7 {[%clk 0:03:01]} 10. cxd5 {[%clk 0:02:27]}  Nxd5 {[%clk 0:03:01]} 11. Bg3 {[%clk 0:02:28]}  c5 {[%clk 0:02:59]} 12. Nxd5 {[%clk 0:02:15]}  Bxd5 {[%clk 0:02:59]} 13. e4 {[%clk 0:02:12]}  Bb7 {[%clk 0:02:58]} 14. e5 {[%clk 0:02:00]}  cxd4 {[%clk 0:02:50]} 15. Nxd4 {[%clk 0:01:57]}  Nc5 {[%clk 0:02:49]} 16. Bc2 {[%clk 0:01:52]}  Qd5 {[%clk 0:02:45]} 17. f3 {[%clk 0:01:47]}  Rfd8 {[%clk 0:02:39]} 18. Bf2 {[%clk 0:01:38]}  Qxe5 {[%clk 0:02:34]} 19. b4 {[%clk 0:01:38]}  Nd7 {[%clk 0:02:25]} 20. Re1 {[%clk 0:01:38]}  Qh5 {[%clk 0:02:10]} 21. Nf5 {[%clk 0:01:28]}  Bf6 {[%clk 0:01:47]} 22. Ng3 {[%clk 0:01:21]}  Qb5 {[%clk 0:01:40]} 23. Ba4 {[%clk 0:01:08]}  Qd5 {[%clk 0:01:39]} 24. Rc1 {[%clk 0:00:50]}  Qxa2 {[%clk 0:01:33]} 25. Bxd7 {[%clk 0:00:41]}  Bc8 {[%clk 0:01:21]} 26. Qa4 {[%clk 0:00:35]}  Qxa4 {[%clk 0:01:18]} 27. Bxa4 {[%clk 0:00:35]}  Bb7 {[%clk 0:01:17]} 28. Bc6 {[%clk 0:00:31]}  Bxc6 {[%clk 0:01:16]} 29. Rxc6 {[%clk 0:00:31]}  Rd2 {[%clk 0:01:16]} 30. Ne4 {[%clk 0:00:30]}  Rb2 {[%clk 0:01:16]} 31. Nxf6+ {[%clk 0:00:30]}  gxf6 {[%clk 0:01:17]} 32. Rc4 {[%clk 0:00:28]}  Rd8 {[%clk 0:01:16]} 33. h4 {[%clk 0:00:16]}  e5 {[%clk 0:01:16]} 34. Be3 {[%clk 0:00:15]}  Rd3 {[%clk 0:01:16]} 35. Rc8+ {[%clk 0:00:10]}  Kg7 {[%clk 0:01:16]} 36. Rc7 {[%clk 0:00:10]}  a5 {[%clk 0:01:16]} 37. bxa5 {[%clk 0:00:09]}  bxa5 {[%clk 0:01:16]} 38. h5 {[%clk 0:00:09]}  Ra2 {[%clk 0:01:15]} 39. Rcc1 {[%clk 0:00:07]}  f5 {[%clk 0:01:15]} 40. Rcd1 {[%clk 0:00:06]}  Rb3 {[%clk 0:01:12]} 41. Ra1 {[%clk 0:00:06]}  Rbb2 {[%clk 0:01:11]} 42. Rxa2 {[%clk 0:00:06]}  Rxa2 {[%clk 0:01:11]} 43. f4 {[%clk 0:00:07]}  e4 {[%clk 0:01:11]} 44. Bd4+ {[%clk 0:00:07]}  Kf8 {[%clk 0:01:12]} 45. Ra1 {[%clk 0:00:07]}  Rd2 {[%clk 0:01:10]} 46. Bc5+ {[%clk 0:00:07]}  Ke8 {[%clk 0:01:10]} 47. Rxa5 {[%clk 0:00:08]}  Kd7 {[%clk 0:01:10]} 48. Be3 {[%clk 0:00:08]}  Ke6 {[%clk 0:01:10]} 49. Bxd2 {[%clk 0:00:08]} 1-0


[Site "https://www.chess.com"]

[Event "Titled Tuesday Blitz August 22 Early 2023"]
[White "Balla, Tamas-Kristof"]
[Black "micke12a"]
[WhiteFideId "1208497"]
[WhiteElo "2428"]
[BlackElo "2322"]
[Result "0-1"]
[Round "11"]
[TimeControl "180+1"]
[Date "2023.08.22"]
[WhiteClock "0:00:01"]
[BlackClock "0:00:22"]
[Board "122"]

1. e4 {[%clk 0:02:57]}  c5 {[%clk 0:02:59]} 2. c3 {[%clk 0:02:57]}  d5 {[%clk 0:02:59]} 3. exd5 {[%clk 0:02:57]}  Qxd5 {[%clk 0:02:59]} 4. d4 {[%clk 0:02:57]}  cxd4 {[%clk 0:03:00]} 5. Nf3 {[%clk 0:02:58]}  e6 {[%clk 0:02:51]} 6. cxd4 {[%clk 0:02:57]}  Nc6 {[%clk 0:02:50]} 7. Nc3 {[%clk 0:02:57]}  Bb4 {[%clk 0:02:50]} 8. Bd3 {[%clk 0:02:50]}  Nf6 {[%clk 0:02:47]} 9. O-O {[%clk 0:02:50]}  Bxc3 {[%clk 0:02:46]} 10. bxc3 {[%clk 0:02:49]}  O-O {[%clk 0:02:47]} 11. Re1 {[%clk 0:02:28]}  b6 {[%clk 0:02:43]} 12. Bg5 {[%clk 0:02:23]}  Bb7 {[%clk 0:02:39]} 13. Bxf6 {[%clk 0:02:23]}  gxf6 {[%clk 0:02:40]} 14. Re4 {[%clk 0:02:05]}  f5 {[%clk 0:02:37]} 15. Rh4 {[%clk 0:02:04]}  Ne7 {[%clk 0:02:35]} 16. Qd2 {[%clk 0:01:57]}  Ng6 {[%clk 0:02:35]} 17. Rh3 {[%clk 0:01:58]}  f4 {[%clk 0:02:29]} 18. Re1 {[%clk 0:01:44]}  Rad8 {[%clk 0:02:22]} 19. Be4 {[%clk 0:01:10]}  Qd7 {[%clk 0:02:18]} 20. Ne5 {[%clk 0:01:10]}  Nxe5 {[%clk 0:01:48]} 21. Bxh7+ {[%clk 0:01:08]}  Kg7 {[%clk 0:01:48]} 22. Rxe5 {[%clk 0:01:05]}  f6 {[%clk 0:01:35]} 23. Qxf4 {[%clk 0:00:58]}  fxe5 {[%clk 0:01:24]} 24. Qg5+ {[%clk 0:00:57]}  Kf7 {[%clk 0:01:04]} 25. Bg6+ {[%clk 0:00:19]}  Kg8 {[%clk 0:01:02]} 26. Bh7+ {[%clk 0:00:10]}  Kf7 {[%clk 0:00:54]} 27. Bg6+ {[%clk 0:00:08]}  Kg8 {[%clk 0:00:55]} 28. Qh5 {[%clk 0:00:04]}  Qg7 {[%clk 0:00:43]} 29. Bh7+ {[%clk 0:00:05]}  Kh8 {[%clk 0:00:40]} 30. Bg6+ {[%clk 0:00:04]}  Kg8 {[%clk 0:00:40]} 31. Bh7+ {[%clk 0:00:03]}  Kh8 {[%clk 0:00:40]} 32. Bf5+ {[%clk 0:00:03]}  Kg8 {[%clk 0:00:34]} 33. Bxe6+ {[%clk 0:00:04]}  Rf7 {[%clk 0:00:30]} 34. Rg3 {[%clk 0:00:05]}  Rf8 {[%clk 0:00:21]} 35. Rxg7+ {[%clk 0:00:04]}  Kxg7 {[%clk 0:00:21]} 36. Bxf7 {[%clk 0:00:03]}  Rxf7 {[%clk 0:00:21]} 37. Qxe5+ {[%clk 0:00:04]}  Kf8 {[%clk 0:00:22]} 38. f3 {[%clk 0:00:03]}  Re7 {[%clk 0:00:20]} 39. Qf6+ {[%clk 0:00:03]}  Ke8 {[%clk 0:00:20]} 40. h4 {[%clk 0:00:02]}  Kd7 {[%clk 0:00:21]} 41. h5 {[%clk 0:00:02]}  Re6 {[%clk 0:00:21]} 42. h6 {[%clk 0:00:01]}  Rxf6 {[%clk 0:00:22]} 0-1


[Site "https://www.chess.com"]

[Event "Titled Tuesday Blitz August 22 Early 2023"]
[White "Pershina, Elena"]
[Black "Osinovsky, Stepan"]
[WhiteFideId "24147516"]
[BlackFideId "4157354"]
[WhiteElo "2420"]
[BlackElo "2318"]
[Result "0-1"]
[Round "11"]
[TimeControl "180+1"]
[Date "2023.08.22"]
[WhiteClock "0:00:04"]
[BlackClock "0:00:29"]
[Board "123"]

1. c4 {[%clk 0:03:00]}  Nf6 {[%clk 0:02:59]} 2. g3 {[%clk 0:03:01]}  g6 {[%clk 0:03:00]} 3. Bg2 {[%clk 0:03:01]}  Bg7 {[%clk 0:03:01]} 4. Nc3 {[%clk 0:03:01]}  O-O {[%clk 0:03:02]} 5. d4 {[%clk 0:03:00]}  d6 {[%clk 0:03:01]} 6. h3 {[%clk 0:02:59]}  e5 {[%clk 0:03:02]} 7. dxe5 {[%clk 0:02:52]}  dxe5 {[%clk 0:03:03]} 8. Bg5 {[%clk 0:02:47]}  Qe8 {[%clk 0:02:43]} 9. Nf3 {[%clk 0:02:42]}  h6 {[%clk 0:02:41]} 10. Be3 {[%clk 0:02:28]}  c6 {[%clk 0:02:41]} 11. Qd2 {[%clk 0:02:27]}  Kh7 {[%clk 0:02:40]} 12. O-O {[%clk 0:02:18]}  Qe7 {[%clk 0:02:30]} 13. Rfd1 {[%clk 0:02:14]}  Re8 {[%clk 0:02:31]} 14. Rac1 {[%clk 0:02:01]}  Nbd7 {[%clk 0:02:29]} 15. Kh2 {[%clk 0:01:55]}  Nc5 {[%clk 0:02:24]} 16. b4 {[%clk 0:01:49]}  Nce4 {[%clk 0:02:22]} 17. Nxe4 {[%clk 0:01:49]}  Nxe4 {[%clk 0:02:23]} 18. Qb2 {[%clk 0:01:49]}  f5 {[%clk 0:02:16]} 19. Ne1 {[%clk 0:01:38]}  Nf6 {[%clk 0:01:57]} 20. Bc5 {[%clk 0:01:36]}  Qf7 {[%clk 0:01:53]} 21. Qb3 {[%clk 0:01:16]}  g5 {[%clk 0:01:48]} 22. b5 {[%clk 0:01:02]}  e4 {[%clk 0:01:43]} 23. bxc6 {[%clk 0:00:59]}  bxc6 {[%clk 0:01:44]} 24. f3 {[%clk 0:00:54]}  f4 {[%clk 0:01:32]} 25. fxe4 {[%clk 0:00:51]}  Nxe4 {[%clk 0:00:52]} 26. g4 {[%clk 0:00:32]}  Nxc5 {[%clk 0:00:38]} 27. Qc2+ {[%clk 0:00:30]}  Kh8 {[%clk 0:00:37]} 28. Bxc6 {[%clk 0:00:29]}  Bb7 {[%clk 0:00:34]} 29. Bxe8 {[%clk 0:00:26]}  Rxe8 {[%clk 0:00:33]} 30. Nf3 {[%clk 0:00:25]}  Qe7 {[%clk 0:00:31]} 31. Rd2 {[%clk 0:00:23]}  Qe3 {[%clk 0:00:30]} 32. Rcd1 {[%clk 0:00:18]}  Qf2+ {[%clk 0:00:30]} 33. Kh1 {[%clk 0:00:18]}  Ne4 {[%clk 0:00:30]} 34. Rg1 {[%clk 0:00:07]}  Ng3+ {[%clk 0:00:29]} 35. Rxg3 {[%clk 0:00:04]}  fxg3 {[%clk 0:00:29]} 0-1


[Site "https://www.chess.com"]

[Event "Titled Tuesday Blitz August 22 Early 2023"]
[White "Kaminski, Victor"]
[Black "MateoReyes"]
[WhiteFideId "1131630"]
[WhiteElo "2277"]
[BlackElo "2418"]
[Result "0-1"]
[Round "11"]
[TimeControl "180+1"]
[Date "2023.08.22"]
[WhiteClock "0:01:28"]
[BlackClock "0:01:51"]
[Board "125"]

1. e4 {[%clk 0:02:59]}  c5 {[%clk 0:02:58]} 2. Nf3 {[%clk 0:02:59]}  d6 {[%clk 0:02:58]} 3. d4 {[%clk 0:02:59]}  cxd4 {[%clk 0:02:58]} 4. Nxd4 {[%clk 0:03:00]}  Nf6 {[%clk 0:02:58]} 5. Nc3 {[%clk 0:03:00]}  a6 {[%clk 0:02:58]} 6. h4 {[%clk 0:02:59]}  e5 {[%clk 0:02:58]} 7. Nb3 {[%clk 0:02:57]}  Be6 {[%clk 0:02:54]} 8. h5 {[%clk 0:02:50]}  h6 {[%clk 0:02:54]} 9. Be3 {[%clk 0:02:51]}  Nbd7 {[%clk 0:02:53]} 10. f3 {[%clk 0:02:47]}  Rc8 {[%clk 0:02:52]} 11. Nd5 {[%clk 0:02:46]}  Nxd5 {[%clk 0:02:50]} 12. exd5 {[%clk 0:02:47]}  Bf5 {[%clk 0:02:50]} 13. c4 {[%clk 0:02:47]}  b6 {[%clk 0:02:49]} 14. a4 {[%clk 0:02:46]}  a5 {[%clk 0:02:48]} 15. Bd3 {[%clk 0:02:45]}  Bxd3 {[%clk 0:02:47]} 16. Qxd3 {[%clk 0:02:46]}  Be7 {[%clk 0:02:47]} 17. Nd2 {[%clk 0:02:46]}  Bg5 {[%clk 0:02:44]} 18. Ne4 {[%clk 0:02:45]}  Qe7 {[%clk 0:02:37]} 19. Bxg5 {[%clk 0:02:41]}  hxg5 {[%clk 0:02:37]} 20. Qa3 {[%clk 0:02:40]}  Nc5 {[%clk 0:02:36]} 21. Nxc5 {[%clk 0:02:39]}  bxc5 {[%clk 0:02:34]} 22. Qc3 {[%clk 0:02:37]}  Qa7 {[%clk 0:02:33]} 23. Ra3 {[%clk 0:02:32]}  Rb8 {[%clk 0:02:32]} 24. Qe3 {[%clk 0:02:26]}  Rxb2 {[%clk 0:02:27]} 25. O-O {[%clk 0:02:18]}  Rxh5 {[%clk 0:02:20]} 26. Rb3 {[%clk 0:02:16]}  Rxb3 {[%clk 0:02:15]} 27. Qxb3 {[%clk 0:02:17]}  g6 {[%clk 0:02:12]} 28. Qb5+ {[%clk 0:02:10]}  Kf8 {[%clk 0:02:11]} 29. Qc6 {[%clk 0:02:10]}  Qb8 {[%clk 0:02:09]} 30. Qb5 {[%clk 0:01:54]}  Qd8 {[%clk 0:02:08]} 31. Qc6 {[%clk 0:01:50]}  Kg7 {[%clk 0:02:05]} 32. Rb1 {[%clk 0:01:48]}  Qf6 {[%clk 0:02:02]} 33. Rb6 {[%clk 0:01:38]}  e4 {[%clk 0:02:02]} 34. Qxd6 {[%clk 0:01:35]}  Qd4+ {[%clk 0:02:02]} 35. Kf1 {[%clk 0:01:33]}  Rh1+ {[%clk 0:02:00]} 36. Ke2 {[%clk 0:01:33]}  Qd3+ {[%clk 0:01:58]} 37. Kf2 {[%clk 0:01:32]}  Qd2+ {[%clk 0:01:51]} 38. Kg3 {[%clk 0:01:29]}  Qe1+ {[%clk 0:01:51]} 39. Kg4 {[%clk 0:01:28]}  Qh4# {[%clk 0:01:51]} 0-1


[Site "https://www.chess.com"]

[Event "Titled Tuesday Blitz August 22 Early 2023"]
[White "Harriott, Tyrell"]
[Black "Rodriguez Santiago, Jaime"]
[WhiteFideId "2086484"]
[BlackFideId "3100898"]
[WhiteElo "2418"]
[BlackElo "2263"]
[Result "0-1"]
[Round "11"]
[TimeControl "180+1"]
[Date "2023.08.22"]
[WhiteClock "0:00:00"]
[BlackClock "0:00:05"]
[Board "126"]

1. d4 {[%clk 0:02:57]}  Nf6 {[%clk 0:02:59]} 2. e3 {[%clk 0:02:54]}  d5 {[%clk 0:02:58]} 3. Bd3 {[%clk 0:02:48]}  c5 {[%clk 0:02:58]} 4. c3 {[%clk 0:02:47]}  Nc6 {[%clk 0:02:57]} 5. f4 {[%clk 0:02:47]}  Bg4 {[%clk 0:02:48]} 6. Ne2 {[%clk 0:02:47]}  cxd4 {[%clk 0:02:44]} 7. exd4 {[%clk 0:02:46]}  e6 {[%clk 0:02:42]} 8. Nd2 {[%clk 0:02:45]}  Bd6 {[%clk 0:02:36]} 9. O-O {[%clk 0:02:45]}  O-O {[%clk 0:02:30]} 10. Nf3 {[%clk 0:02:45]}  Ne4 {[%clk 0:02:28]} 11. Bxe4 {[%clk 0:02:45]}  dxe4 {[%clk 0:02:27]} 12. Ng5 {[%clk 0:02:45]}  Bf5 {[%clk 0:02:20]} 13. Ng3 {[%clk 0:02:43]}  Bg6 {[%clk 0:02:20]} 14. N5xe4 {[%clk 0:02:43]}  Bc7 {[%clk 0:02:11]} 15. f5 {[%clk 0:02:24]}  exf5 {[%clk 0:02:09]} 16. Nxf5 {[%clk 0:02:24]}  Re8 {[%clk 0:02:05]} 17. Qf3 {[%clk 0:02:05]}  Qd7 {[%clk 0:01:26]} 18. Neg3 {[%clk 0:01:46]}  Rad8 {[%clk 0:01:03]} 19. Bg5 {[%clk 0:01:43]}  f6 {[%clk 0:01:01]} 20. Bf4 {[%clk 0:01:22]}  Bb6 {[%clk 0:01:00]} 21. Nd6 {[%clk 0:01:17]}  Re6 {[%clk 0:00:45]} 22. Nc4 {[%clk 0:01:09]}  Bc7 {[%clk 0:00:31]} 23. Bxc7 {[%clk 0:01:05]}  Qxc7 {[%clk 0:00:32]} 24. d5 {[%clk 0:01:03]}  Ne5 {[%clk 0:00:19]} 25. Nxe5 {[%clk 0:00:57]}  Rxe5 {[%clk 0:00:20]} 26. Rad1 {[%clk 0:00:53]}  Qc5+ {[%clk 0:00:19]} 27. Kh1 {[%clk 0:00:41]}  Rexd5 {[%clk 0:00:19]} 28. Rxd5 {[%clk 0:00:31]}  Qxd5 {[%clk 0:00:18]} 29. Qf2 {[%clk 0:00:29]}  b6 {[%clk 0:00:17]} 30. a3 {[%clk 0:00:28]}  Qd2 {[%clk 0:00:17]} 31. h3 {[%clk 0:00:25]}  Qxf2 {[%clk 0:00:17]} 32. Rxf2 {[%clk 0:00:26]}  Rd1+ {[%clk 0:00:17]} 33. Kh2 {[%clk 0:00:26]}  Rb1 {[%clk 0:00:17]} 34. Rd2 {[%clk 0:00:25]}  h5 {[%clk 0:00:17]} 35. h4 {[%clk 0:00:24]}  Bf7 {[%clk 0:00:16]} 36. Ne2 {[%clk 0:00:23]}  Be6 {[%clk 0:00:14]} 37. Nf4 {[%clk 0:00:22]}  Bg4 {[%clk 0:00:13]} 38. Kg3 {[%clk 0:00:22]}  Kh7 {[%clk 0:00:12]} 39. Kf2 {[%clk 0:00:21]}  g5 {[%clk 0:00:11]} 40. Nd5 {[%clk 0:00:19]}  Kg6 {[%clk 0:00:12]} 41. Nc7 {[%clk 0:00:17]}  gxh4 {[%clk 0:00:10]} 42. Nd5 {[%clk 0:00:16]}  h3 {[%clk 0:00:10]} 43. gxh3 {[%clk 0:00:14]}  Bf5 {[%clk 0:00:10]} 44. Nf4+ {[%clk 0:00:14]}  Kg5 {[%clk 0:00:10]} 45. Ke3 {[%clk 0:00:07]}  Re1+ {[%clk 0:00:09]} 46. Ne2 {[%clk 0:00:05]}  Bxh3 {[%clk 0:00:08]} 47. Kf2 {[%clk 0:00:06]}  Rf1+ {[%clk 0:00:08]} 48. Kg3 {[%clk 0:00:05]}  Bg4 {[%clk 0:00:07]} 49. Nd4 {[%clk 0:00:05]}  h4+ {[%clk 0:00:07]} 50. Kg2 {[%clk 0:00:06]}  Rb1 {[%clk 0:00:06]} 51. Rf2 {[%clk 0:00:05]}  f5 {[%clk 0:00:06]} 52. Ne6+ {[%clk 0:00:05]}  Kh5 {[%clk 0:00:05]} 53. Nf4+ {[%clk 0:00:05]}  Kh6 {[%clk 0:00:05]} 54. Nd5 {[%clk 0:00:05]}  Kg5 {[%clk 0:00:05]} 55. Ne7 {[%clk 0:00:05]}  h3+ {[%clk 0:00:06]} 56. Kh2 {[%clk 0:00:04]}  Re1 {[%clk 0:00:06]} 57. Nd5 {[%clk 0:00:05]}  Re2 {[%clk 0:00:06]} 58. Rxe2 {[%clk 0:00:03]}  Bxe2 {[%clk 0:00:07]} 59. Ne7 {[%clk 0:00:01]}  Bg4 {[%clk 0:00:06]} 60. Nc8 {[%clk 0:00:02]}  Kf4 {[%clk 0:00:05]} 61. Nxa7 {[%clk 0:00:03]}  Ke3 {[%clk 0:00:05]} 62. Nc8 {[%clk 0:00:02]}  f4 {[%clk 0:00:05]} 63. Nxb6 {[%clk 0:00:02]}  f3 {[%clk 0:00:05]} 64. Nc4+ {[%clk 0:00:02]}  Ke2 {[%clk 0:00:05]} 65. Ne5 {[%clk 0:00:02]}  f2 {[%clk 0:00:05]} 66. Nxg4 {[%clk 0:00:00]}  f1=Q {[%clk 0:00:05]} 0-1


[Site "https://www.chess.com"]

[Event "Titled Tuesday Blitz August 22 Early 2023"]
[White "hsd2016"]
[Black "Farmani Anosheh, Armin"]
[BlackFideId "24613240"]
[WhiteElo "2252"]
[BlackElo "2411"]
[Result "0-1"]
[Round "11"]
[TimeControl "180+1"]
[Date "2023.08.22"]
[WhiteClock "0:02:21"]
[BlackClock "0:01:59"]
[Board "127"]

1. c4 {[%clk 0:03:00]}  Nf6 {[%clk 0:02:58]} 2. Nc3 {[%clk 0:03:01]}  g6 {[%clk 0:02:59]} 3. g3 {[%clk 0:03:01]}  Bg7 {[%clk 0:02:59]} 4. Bg2 {[%clk 0:03:02]}  O-O {[%clk 0:03:00]} 5. d3 {[%clk 0:03:02]}  d6 {[%clk 0:03:00]} 6. e4 {[%clk 0:03:03]}  c5 {[%clk 0:03:00]} 7. Nge2 {[%clk 0:03:04]}  Nc6 {[%clk 0:03:00]} 8. O-O {[%clk 0:03:04]}  Rb8 {[%clk 0:03:00]} 9. h3 {[%clk 0:03:04]}  a6 {[%clk 0:03:00]} 10. a4 {[%clk 0:03:04]}  e6 {[%clk 0:02:50]} 11. Bf4 {[%clk 0:03:00]}  Qc7 {[%clk 0:02:41]} 12. Qd2 {[%clk 0:02:55]}  Nd7 {[%clk 0:02:37]} 13. Kh2 {[%clk 0:02:49]}  Nde5 {[%clk 0:02:36]} 14. Be3 {[%clk 0:02:48]}  Nb4 {[%clk 0:02:35]} 15. Nc1 {[%clk 0:02:47]}  Nec6 {[%clk 0:02:28]} 16. f4 {[%clk 0:02:45]}  Nd4 {[%clk 0:02:28]} 17. Bxd4 {[%clk 0:02:42]}  Bxd4 {[%clk 0:02:22]} 18. Nb3 {[%clk 0:02:38]}  Bg7 {[%clk 0:02:21]} 19. a5 {[%clk 0:02:38]}  Bd7 {[%clk 0:02:19]} 20. Na4 {[%clk 0:02:37]}  Bxa4 {[%clk 0:02:18]} 21. Rxa4 {[%clk 0:02:38]}  Nc6 {[%clk 0:02:17]} 22. Raa1 {[%clk 0:02:34]}  b6 {[%clk 0:02:16]} 23. axb6 {[%clk 0:02:33]}  Rxb6 {[%clk 0:02:17]} 24. Ra3 {[%clk 0:02:32]}  Rfb8 {[%clk 0:02:17]} 25. Rfa1 {[%clk 0:02:33]}  Rxb3 {[%clk 0:02:16]} 26. Rxa6 {[%clk 0:02:31]}  Rxb2 {[%clk 0:02:11]} 27. Qe3 {[%clk 0:02:28]}  Rxg2+ {[%clk 0:02:04]} 28. Kxg2 {[%clk 0:02:28]}  Bxa1 {[%clk 0:02:04]} 29. Rxa1 {[%clk 0:02:28]}  Qb6 {[%clk 0:02:00]} 30. Re1 {[%clk 0:02:25]}  Qb2+ {[%clk 0:02:00]} 31. Re2 {[%clk 0:02:25]}  Qd4 {[%clk 0:02:01]} 32. Qf3 {[%clk 0:02:25]}  Rb2 {[%clk 0:02:01]} 33. h4 {[%clk 0:02:22]}  Rxe2+ {[%clk 0:01:58]} 34. Qxe2 {[%clk 0:02:21]}  Nb4 {[%clk 0:01:59]} 0-1


[Site "https://www.chess.com"]

[Event "Titled Tuesday Blitz August 22 Early 2023"]
[White "Bogaudinov, Rushan"]
[Black "Sava, Christiansen-Danut-Eugen"]
[WhiteFideId "4129288"]
[BlackFideId "1210114"]
[WhiteElo "2388"]
[BlackElo "2239"]
[Result "1-0"]
[Round "11"]
[TimeControl "180+1"]
[Date "2023.08.22"]
[WhiteClock "0:00:51"]
[BlackClock "0:00:00"]
[Board "129"]

1. b4 {[%clk 0:02:50]}  Nf6 {[%clk 0:02:58]} 2. Bb2 {[%clk 0:02:50]}  e6 {[%clk 0:02:58]} 3. a3 {[%clk 0:02:49]}  Be7 {[%clk 0:02:54]} 4. g3 {[%clk 0:02:48]}  O-O {[%clk 0:02:53]} 5. Bg2 {[%clk 0:02:49]}  a5 {[%clk 0:02:52]} 6. b5 {[%clk 0:02:42]}  d6 {[%clk 0:02:50]} 7. c4 {[%clk 0:02:37]}  Nbd7 {[%clk 0:02:49]} 8. Nf3 {[%clk 0:02:36]}  d5 {[%clk 0:02:44]} 9. d3 {[%clk 0:02:35]}  dxc4 {[%clk 0:02:43]} 10. dxc4 {[%clk 0:02:35]}  Nc5 {[%clk 0:02:43]} 11. O-O {[%clk 0:02:33]}  Qxd1 {[%clk 0:02:42]} 12. Rxd1 {[%clk 0:02:33]}  Nb3 {[%clk 0:02:42]} 13. Ra2 {[%clk 0:02:31]}  Ne4 {[%clk 0:02:39]} 14. Nbd2 {[%clk 0:02:25]}  Nexd2 {[%clk 0:02:37]} 15. Nxd2 {[%clk 0:02:25]}  a4 {[%clk 0:02:38]} 16. Nxb3 {[%clk 0:02:22]}  axb3 {[%clk 0:02:37]} 17. Raa1 {[%clk 0:02:23]}  Ra4 {[%clk 0:02:35]} 18. Rac1 {[%clk 0:02:08]}  e5 {[%clk 0:02:05]} 19. Rc3 {[%clk 0:02:01]}  Bxa3 {[%clk 0:02:01]} 20. Bxa3 {[%clk 0:01:58]}  Rxa3 {[%clk 0:02:01]} 21. Rb1 {[%clk 0:01:58]}  b6 {[%clk 0:02:00]} 22. Bd5 {[%clk 0:01:55]}  Bf5 {[%clk 0:01:51]} 23. Rbxb3 {[%clk 0:01:49]}  Ra1+ {[%clk 0:01:50]} 24. Kg2 {[%clk 0:01:49]}  Re1 {[%clk 0:01:44]} 25. Re3 {[%clk 0:01:44]}  Re8 {[%clk 0:01:36]} 26. Ra3 {[%clk 0:01:39]}  h5 {[%clk 0:01:19]} 27. h3 {[%clk 0:01:39]}  Rc1 {[%clk 0:01:12]} 28. Ra7 {[%clk 0:01:38]}  Re7 {[%clk 0:01:08]} 29. f4 {[%clk 0:01:37]}  e4 {[%clk 0:01:04]} 30. Raa3 {[%clk 0:01:17]}  Rc2 {[%clk 0:00:46]} 31. Rac3 {[%clk 0:01:17]}  Rxc3 {[%clk 0:00:44]} 32. Rxc3 {[%clk 0:01:16]}  e3 {[%clk 0:00:34]} 33. Bf3 {[%clk 0:01:10]}  g6 {[%clk 0:00:32]} 34. g4 {[%clk 0:01:10]}  hxg4 {[%clk 0:00:32]} 35. hxg4 {[%clk 0:01:11]}  Bd7 {[%clk 0:00:32]} 36. Kg3 {[%clk 0:01:10]}  Kf8 {[%clk 0:00:31]} 37. Bd5 {[%clk 0:01:07]}  Kg7 {[%clk 0:00:15]} 38. Kf3 {[%clk 0:01:02]}  Bc8 {[%clk 0:00:14]} 39. g5 {[%clk 0:00:58]}  Be6 {[%clk 0:00:05]} 40. Rxe3 {[%clk 0:00:55]}  Bxd5+ {[%clk 0:00:05]} 41. cxd5 {[%clk 0:00:56]}  Rd7 {[%clk 0:00:06]} 42. Rd3 {[%clk 0:00:55]}  Kf8 {[%clk 0:00:05]} 43. e4 {[%clk 0:00:55]}  Ke7 {[%clk 0:00:05]} 44. e5 {[%clk 0:00:56]}  Rd8 {[%clk 0:00:04]} 45. Ke4 {[%clk 0:00:56]}  Kd7 {[%clk 0:00:04]} 46. d6 {[%clk 0:00:54]}  c6 {[%clk 0:00:02]} 47. bxc6+ {[%clk 0:00:54]}  Kxc6 {[%clk 0:00:03]} 48. Rc3+ {[%clk 0:00:55]}  Kb5 {[%clk 0:00:02]} 49. Kd5 {[%clk 0:00:54]}  Ka5 {[%clk 0:00:01]} 50. Rc7 {[%clk 0:00:53]}  b5 {[%clk 0:00:02]} 51. Ra7+ {[%clk 0:00:53]}  Kb6 {[%clk 0:00:02]} 52. Rxf7 {[%clk 0:00:54]}  b4 {[%clk 0:00:03]} 53. Rh7 {[%clk 0:00:51]}  b3 {[%clk 0:00:00]} 54. Rh3 {[%clk 0:00:51]} 1-0


[Site "https://www.chess.com"]